bitfinex-derivatives/quotes_BTCF0:USTF0_20250805
["timestamp","ask_amount","ask_price","bid_price","bid_amount"]
[1754364562439,0.5104552,114380.0,114370.0,1.26466807]
[1754364562641,0.5261052,114380.0,114370.0,1.26607535]
[1754364562938,0.5490152,114380.0,114370.0,1.26607535]
[1754364563338,0.5490152,114380.0,114370.0,1.87047535]
[1754364563939,0.5490152,114380.0,114370.0,1.26607535]
[1754364564144,0.5490152,114380.0,114370.0,1.87047535]
[1754364565030,0.5490152,114380.0,114370.0,1.26607535]
[1754364565236,0.5490152,114380.0,114370.0,1.37593913]
[1754364565433,0.5490152,114380.0,114370.0,1.98029913]
[1754364566534,0.5490152,114380.0,114370.0,1.87043535]
[1754364567044,0.5490152,114380.0,114370.0,1.98064222]
[1754364567642,0.5490152,114380.0,114370.0,1.37479494]
[1754364568041,0.5490152,114380.0,114370.0,1.98064222]
[1754364568241,0.5490152,114380.0,114370.0,1.87043535]
[1754364572846,0.5490152,114380.0,114370.0,0.63506807]
[1754364573047,0.5490152,114380.0,114370.0,1.86978535]
[1754364573441,0.5333652,114380.0,114370.0,1.86978535]
[1754364573649,0.25096,114380.0,114370.0,1.86978535]
[1754364574344,0.2495,114380.0,114370.0,1.86978535]
[1754364575342,0.2495,114380.0,114370.0,2.02712276]
[1754364577341,0.25095,114380.0,114370.0,2.02712276]
[1754364578542,0.25095,114380.0,114370.0,1.86978535]
[1754364581950,0.00145,114380.0,114370.0,1.86978535]
[1754364582250,0.25095,114380.0,114370.0,1.86978535]
[1754364585243,0.37456,114380.0,114370.0,1.82074535]
[1754364585442,0.25095,114380.0,114370.0,1.82074535]
[1754364585648,0.25095,114380.0,114370.0,1.97808276]
[1754364586467,0.23739451,114380.0,114370.0,1.82074535]
[1754364586654,0.46084,114400.0,114390.0,0.22388]
[1754364586966,0.6356647,114400.0,114390.0,1.50045728]
[1754364587164,0.8730647,114400.0,114390.0,1.50045728]
[1754364587866,0.8740647,114400.0,114390.0,1.50045728]
[1754364588869,0.8986347,114400.0,114390.0,1.50045728]
[1754364589568,0.8976347,114400.0,114390.0,1.50045728]
[1754364589769,0.8976347,114400.0,114390.0,1.50145728]
[1754364590470,0.8976347,114400.0,114390.0,1.04456]
[1754364590671,0.8966347,114400.0,114390.0,1.65140728]
[1754364590870,0.8966347,114400.0,114390.0,1.68535728]
[1754364591168,0.8966347,114400.0,114390.0,1.70998728]
[1754364591365,0.8966347,114400.0,114390.0,1.71821728]
[1754364591762,0.8966347,114400.0,114390.0,1.11429728]
[1754364591968,0.8966347,114400.0,114390.0,1.71805728]
[1754364594169,0.8966347,114400.0,114390.0,1.82800745]
[1754364594567,0.8966347,114400.0,114390.0,1.71805728]
[1754364596472,0.8966347,114400.0,114390.0,1.82801399]
[1754364599266,0.72181,114400.0,114390.0,1.82801399]
[1754364599776,0.5982,114400.0,114390.0,1.82801399]
[1754364600075,0.5982,114400.0,114390.0,1.71805728]
[1754364600473,0.5982,114400.0,114390.0,1.87521449]
[1754364600977,0.72181,114400.0,114390.0,1.87521449]
[1754364601371,0.72181,114400.0,114390.0,1.71805728]
[1754364602464,0.72181,114400.0,114390.0,1.11221]
[1754364602669,0.8966345,114400.0,114390.0,1.71805728]
[1754364603177,0.8966345,114400.0,114390.0,1.71731728]
[1754364603373,0.8966345,114400.0,114390.0,1.11379728]
[1754364603577,0.8966345,114400.0,114390.0,1.85680464]
[1754364603777,0.8966345,114400.0,114390.0,1.86453464]
[1754364603978,0.8966345,114400.0,114390.0,1.26101464]
[1754364604179,0.8966345,114400.0,114390.0,0.11203736]
[1754364604478,0.3019551,114380.0,114370.0,1.08358665]
[1754364604871,0.78069708,114390.0,114380.0,0.1748551]
[1754364604872,0.2098227,114390.0,114380.0,0.1748551]
[1754364605067,0.2330551,114380.0,114370.0,1.68942163]
[1754364605273,0.3019551,114380.0,114370.0,1.71311163]
[1754364605475,0.3019551,114380.0,114370.0,1.00317557]
[1754364605669,0.3019551,114380.0,114370.0,0.70465747]
[1754364605978,0.3019551,114380.0,114370.0,0.71165747]
[1754364606277,0.5514551,114380.0,114370.0,0.71169747]
[1754364606470,0.5514551,114380.0,114370.0,0.88656787]
[1754364606675,0.5514551,114380.0,114370.0,0.30673787]
[1754364606977,0.5514551,114380.0,114370.0,0.91021787]
[1754364607177,0.5514551,114380.0,114370.0,1.56500515]
[1754364607474,0.35303,114380.0,114370.0,1.61603515]
[1754364607679,0.2495,114380.0,114370.0,1.61603515]
[1754364609270,0.6627351,114400.0,114390.0,0.2237799]
[1754364609471,0.6627351,114400.0,114390.0,1.50778718]
[1754364609670,0.6627246,114400.0,114390.0,1.50778718]
[1754364609874,0.9122246,114400.0,114390.0,1.50778718]
[1754364610076,0.7374,114400.0,114390.0,1.50778718]
[1754364610273,0.9122246,114400.0,114390.0,1.50778718]
[1754364610876,0.9122246,114400.0,114390.0,1.50878718]
[1754364612276,0.9122246,114400.0,114390.0,1.61875552]
[1754364613974,0.9122246,114400.0,114390.0,1.50878718]
[1754364614375,0.9122246,114400.0,114390.0,0.9029399]
[1754364614573,0.9122246,114400.0,114390.0,1.50878718]
[1754364616793,0.8886546,114400.0,114390.0,1.50878718]
[1754364617089,0.8886546,114400.0,114390.0,1.61875552]
[1754364617789,0.8886546,114400.0,114390.0,1.01290824]
[1754364617979,0.8886546,114400.0,114390.0,1.61875552]
[1754364618382,0.8886546,114400.0,114390.0,1.50878718]
[1754364618788,0.9122246,114400.0,114390.0,1.50878718]
[1754364620391,0.9122246,114400.0,114390.0,0.9029399]
[1754364620590,0.9122246,114400.0,114390.0,1.50878718]
[1754364622890,0.9122246,114400.0,114390.0,1.61875552]
[1754364626288,0.8886546,114400.0,114390.0,1.61875552]
[1754364626488,0.8886546,114400.0,114390.0,1.50878718]
[1754364627596,0.8886546,114400.0,114390.0,1.61875552]
[1754364627897,0.9122246,114400.0,114390.0,1.61875552]
[1754364629898,0.8886546,114400.0,114390.0,1.01290824]
[1754364630094,0.8886546,114400.0,114390.0,1.61875552]
[1754364630497,0.8886546,114400.0,114390.0,1.50878718]
[1754364631595,0.7851246,114400.0,114390.0,1.50878718]
[1754364632199,0.8462546,114400.0,114390.0,1.50878718]
[1754364632998,0.8849746,114400.0,114390.0,1.50878718]
[1754364634397,0.71015,114400.0,114390.0,1.50878718]
[1754364635293,0.62212,114400.0,114390.0,1.50878718]
[1754364635597,0.6103,114400.0,114390.0,1.50878718]
[1754364635998,0.66084,114400.0,114390.0,1.50878718]
[1754364636200,0.71015,114400.0,114390.0,1.61875552]
[1754364637399,0.71015,114400.0,114390.0,1.50878718]
[1754364637699,0.6103,114400.0,114390.0,1.50878718]
[1754364638699,0.64187,114400.0,114390.0,1.61894677]
[1754364639903,0.6103,114400.0,114390.0,1.61894677]
[1754364640202,0.64187,114400.0,114390.0,1.50878718]
[1754364640404,0.65369,114400.0,114390.0,1.50878718]
[1754364640603,0.67143,114400.0,114390.0,1.50878718]
[1754364640904,0.71015,114400.0,114390.0,1.6189503]
[1754364641300,0.71015,114400.0,114390.0,1.01310302]
[1754364641503,0.71015,114400.0,114390.0,1.6189503]
[1754364644507,0.71015,114400.0,114390.0,1.50878718]
[1754364646005,0.69241,114400.0,114390.0,1.50878718]
[1754364646908,0.71015,114400.0,114390.0,1.50878718]
[1754364647110,0.71015,114400.0,114390.0,1.61894292]
[1754364648213,0.71015,114400.0,114390.0,1.50878718]
[1754364655813,0.73508,114400.0,114390.0,1.50878718]
[1754364656018,0.9099048,114400.0,114390.0,1.50621718]
[1754364656314,1.51575208,114400.0,114390.0,0.001]
[1754364656620,1.51575208,114400.0,114390.0,0.71363612]
[1754364656917,0.9099048,114400.0,114390.0,0.71363612]
[1754364657112,1.51575208,114400.0,114390.0,0.71363612]
[1754364658818,1.51575208,114400.0,114390.0,0.88847622]
[1754364659409,0.9099048,114400.0,114390.0,0.88847622]
[1754364659610,0.9099048,114400.0,114390.0,1.45748738]
[1754364660017,0.9099048,114400.0,114390.0,1.5676435]
[1754364660216,0.9099048,114400.0,114390.0,1.6158435]
[1754364660521,0.9099048,114400.0,114390.0,1.50568738]
[1754364661216,0.9099048,114400.0,114390.0,1.6158435]
[1754364663923,0.9099048,114400.0,114390.0,1.50568738]
[1754364664530,0.9099048,114400.0,114390.0,0.8998401]
[1754364667026,1.51575208,114400.0,114390.0,0.0243]
[1754364667224,1.51575208,114400.0,114390.0,0.62662]
[1754364667418,0.9099048,114400.0,114390.0,0.8014602]
[1754364667925,0.9099048,114400.0,114390.0,0.62662]
[1754364668124,0.9099048,114400.0,114390.0,0.8014602]
[1754364668825,0.9099048,114400.0,114390.0,0.62662]
[1754364671628,1.51575208,114400.0,114390.0,0.60324]
[1754364674635,1.53401966,114400.0,114390.0,0.60324]
[1754364675339,1.51575208,114400.0,114390.0,0.60324]
[1754364676024,1.51575208,114400.0,114390.0,0.60316]
[1754364676223,1.51575208,114400.0,114390.0,0.001]
[1754364676429,1.51575208,114400.0,114390.0,0.60316]
[1754364677139,2.01575208,114400.0,114390.0,0.60316]
[1754364678241,2.03216456,114400.0,114390.0,0.60316]
[1754364678840,2.01575208,114400.0,114390.0,0.60316]
[1754364679533,2.01575208,114400.0,114390.0,0.62646]
[1754364683147,2.01575208,114400.0,114390.0,0.64286]
[1754364683447,1.4099048,114400.0,114390.0,0.67742]
[1754364683649,2.01575208,114400.0,114390.0,0.71208]
[1754364684648,2.01575208,114400.0,114390.0,0.72838]
[1754364687650,1.4099048,114400.0,114390.0,0.72838]
[1754364687850,2.01575208,114400.0,114390.0,0.72838]
[1754364690351,1.4099048,114400.0,114390.0,0.72838]
[1754364690549,2.01575208,114400.0,114390.0,0.72838]
[1754364691152,1.4099048,114400.0,114390.0,0.72838]
[1754364691351,2.01575208,114400.0,114390.0,0.72838]
[1754364691552,1.4099048,114400.0,114390.0,0.72838]
[1754364691755,2.01575208,114400.0,114390.0,0.72838]
[1754364694850,1.4099048,114400.0,114390.0,0.72838]
[1754364695052,2.0913648,114400.0,114390.0,0.72838]
[1754364696053,2.0913648,114400.0,114390.0,1.40984]
[1754364700657,1.4099048,114400.0,114390.0,1.40984]
[1754364700857,2.0913648,114400.0,114390.0,1.40984]
[1754364701352,2.0913648,114400.0,114390.0,0.72838]
[1754364701556,2.0913648,114400.0,114390.0,1.40984]
[1754364701952,2.0913648,114400.0,114390.0,0.72838]
[1754364702650,2.0913648,114400.0,114390.0,0.12622]
[1754364702958,2.0913648,114400.0,114390.0,0.67712]
[1754364706452,2.0913648,114400.0,114390.0,0.72811]
[1754364706657,2.0913648,114400.0,114390.0,0.12635]
[1754364706854,2.0913648,114400.0,114390.0,0.72807]
[1754364708065,1.4099048,114400.0,114390.0,0.72807]
[1754364708258,2.0913648,114400.0,114390.0,0.72807]
[1754364708461,2.0904648,114400.0,114390.0,0.72807]
[1754364711662,1.4090048,114400.0,114390.0,0.72807]
[1754364711963,2.0904648,114400.0,114390.0,0.71081]
[1754364713861,2.0904648,114400.0,114390.0,0.60264]
[1754364714166,2.0904648,114400.0,114390.0,0.62588]
[1754364715369,2.0904648,114400.0,114390.0,0.64133]
[1754364715668,2.0904648,114400.0,114390.0,0.67506]
[1754364716867,2.0904648,114400.0,114390.0,0.68649]
[1754364717971,2.0904648,114400.0,114390.0,0.68645]
[1754364719668,2.0904648,114400.0,114390.0,0.001]
[1754364719875,2.7719248,114400.0,114390.0,0.001]
[1754364720074,2.7719248,114400.0,114390.0,1e-07]
[1754364720272,2.6985848,114400.0,114390.0,0.6015601]
[1754364720471,3.3001448,114400.0,114390.0,0.6015601]
[1754364720671,3.3725348,114400.0,114390.0,1e-07]
[1754364720970,0.2966202,114390.0,114380.0,0.62476]
[1754364721172,1.6595402,114390.0,114380.0,0.62476]
[1754364721477,0.2966355,114380.0,114370.0,0.38825]
[1754364721673,0.9780955,114380.0,114370.0,0.72497]
[1754364722265,0.2966908,114370.0,114360.0,0.45771736]
[1754364722469,0.9781508,114370.0,114360.0,1.08364736]
[1754364722670,0.9781508,114370.0,114360.0,1.24365348]
[1754364723174,1.2276508,114370.0,114360.0,1.24365348]
[1754364723673,1.2276508,114370.0,114360.0,1.13349736]
[1754364724174,1.2276508,114370.0,114360.0,1.13449736]
[1754364724673,1.15222783,114370.0,114360.0,1.13449736]
[1754364725278,1.15222783,114370.0,114360.0,1.0662419]
[1754364726576,1.14422783,114370.0,114360.0,1.0662419]
[1754364727376,1.14422783,114370.0,114360.0,1.0682419]
[1754364727870,1.14422783,114370.0,114360.0,1.05249429]
[1754364728075,1.14422783,114370.0,114360.0,1.10151429]
[1754364730086,1.64422783,114370.0,114360.0,1.10151429]
[1754364730971,1.64422783,114370.0,114360.0,1.10147429]
[1754364732986,1.64422783,114370.0,114360.0,0.97815429]
[1754364734084,1.64422783,114370.0,114360.0,1.00256429]
[1754364734789,1.64422783,114370.0,114360.0,1.03553429]
[1754364734990,1.0381908,114370.0,114360.0,1.03553429]
[1754364735185,1.64422783,114370.0,114360.0,1.05241429]
[1754364744105,1.0381908,114370.0,114360.0,1.05241429]
[1754364744407,1.64422783,114370.0,114360.0,1.05241429]
[1754364744600,1.69739474,114370.0,114360.0,1.05241429]
[1754364745105,0.9492208,114370.0,114360.0,1.90910433]
[1754364745407,1.63102474,114370.0,114360.0,1.73421823]
[1754364746104,1.66538474,114370.0,114360.0,1.73421823]
[1754364746305,1.68142474,114370.0,114360.0,1.90910423]
[1754364747101,1.68142474,114370.0,114360.0,1.22730029]
[1754364747301,1.68142474,114370.0,114360.0,1.90910423]
[1754364747503,0.9163708,114370.0,114360.0,1.90910423]
[1754364748008,0.9163708,114370.0,114360.0,2.59090817]
[1754364748207,0.9163708,114370.0,114360.0,1.90910423]
[1754364748409,0.9163708,114370.0,114360.0,2.85570817]
[1754364748608,0.9163708,114370.0,114360.0,2.17390423]
[1754364749204,0.9163708,114370.0,114360.0,2.85570817]
[1754364749710,0.4163708,114370.0,114360.0,2.28406035]
[1754364749904,0.4163708,114370.0,114360.0,2.96586429]
[1754364750109,0.4163708,114370.0,114360.0,2.28406035]
[1754364750710,0.4163708,114370.0,114360.0,2.20813251]
[1754364750913,0.4163708,114370.0,114360.0,2.09797639]
[1754364757016,0.4163708,114370.0,114360.0,1.49210029]
[1754364761624,0.4163708,114370.0,114360.0,1.49210029]
[1754364761813,0.4501108,114370.0,114360.0,1.49210029]
[1754364765925,0.4997408,114370.0,114360.0,1.49210029]
[1754364768522,0.4997408,114370.0,114360.0,1.60225641]
[1754364769923,0.4997408,114370.0,114360.0,1.49210029]
[1754364770321,0.5155708,114370.0,114360.0,1.31721429]
[1754364770528,0.5155708,114370.0,114360.0,1.49210029]
[1754364771227,0.5155708,114370.0,114360.0,1.31721429]
[1754364771424,0.5155708,114370.0,114360.0,1.42737041]
[1754364771728,1.1295569,114370.0,114360.0,1.47443041]
[1754364771924,1.1295569,114370.0,114360.0,1.20963041]
[1754364772318,1.1295569,114370.0,114360.0,1.09947429]
[1754364772725,1.20546907,114370.0,114360.0,1.09947429]
[1754364773123,1.20546907,114370.0,114360.0,1.20963041]
[1754364773824,1.20546907,114370.0,114360.0,1.09947429]
[1754364774026,0.5395108,114370.0,114360.0,1.78126256]
[1754364774327,1.22129907,114370.0,114360.0,1.78126256]
[1754364775926,1.14894907,114370.0,114360.0,1.78126256]
[1754364776123,1.10917907,114370.0,114360.0,1.95614856]
[1754364776319,1.14291907,114370.0,114360.0,1.95614856]
[1754364776729,1.15924907,114370.0,114360.0,1.20963041]
[1754364776919,0.4774608,114370.0,114360.0,1.89141868]
[1754364777120,1.22129907,114370.0,114360.0,1.89141868]
[1754364778326,1.19735907,114370.0,114360.0,1.95614856]
[1754364778528,0.4163708,114370.0,114360.0,2.63793683]
[1754364778729,0.4163708,114370.0,114360.0,2.74809295]
[1754364779129,0.4163708,114370.0,114360.0,1.38451641]
[1754364779430,0.4163708,114370.0,114360.0,2.06630468]
[1754364779825,0.4163708,114370.0,114360.0,2.74809295]
[1754364780134,0.4163708,114370.0,114360.0,1.38451641]
[1754364780431,0.4163708,114370.0,114360.0,2.06630468]
[1754364782231,0.4163708,114370.0,114360.0,2.74809295]
[1754364783137,0.2145,114370.0,114360.0,2.63793683]
[1754364783325,0.2145,114370.0,114360.0,3.35969404]
[1754364783326,0.3734507,114370.0,114360.0,3.35969404]
[1754364783530,0.3734507,114370.0,114360.0,3.53457403]
[1754364784034,0.19858,114370.0,114360.0,3.53457403]
[1754364785238,0.3734507,114370.0,114360.0,3.53457403]
[1754364785933,0.3734507,114370.0,114360.0,2.17099749]
[1754364786134,0.3734507,114370.0,114360.0,3.53457403]
[1754364786635,0.3734507,114370.0,114360.0,3.37741682]
[1754364787037,0.19858,114370.0,114360.0,3.37741682]
[1754364788943,0.19858,114370.0,114360.0,3.07741682]
[1754364789540,0.19858,114370.0,114360.0,3.18740715]
[1754364790831,0.19858,114370.0,114360.0,3.07741682]
[1754364791042,0.3734508,114370.0,114360.0,3.07741682]
[1754364791642,0.3975808,114370.0,114360.0,3.07741682]
[1754364793638,0.3975808,114370.0,114360.0,2.90253683]
[1754364796146,0.22271,114370.0,114360.0,2.90253683]
[1754364796345,0.3975808,114370.0,114360.0,3.01252716]
[1754364796937,0.3975808,114370.0,114360.0,4.22188716]
[1754364797948,0.22271,114370.0,114360.0,4.22188716]
[1754364800349,0.3975808,114370.0,114360.0,4.22188716]
[1754364802850,0.22271,114370.0,114360.0,4.11189683]
[1754364804852,0.3975808,114370.0,114360.0,4.11189683]
[1754364808454,0.4298508,114370.0,114360.0,4.11189683]
[1754364809161,0.4454208,114370.0,114360.0,4.11189683]
[1754364809453,0.4681108,114370.0,114360.0,4.11189683]
[1754364810153,0.4358408,114370.0,114360.0,3.48680683]
[1754364810352,0.4941608,114370.0,114360.0,3.5153138]
[1754364810955,0.4941608,114370.0,114360.0,3.40517856]
[1754364811451,0.4941608,114370.0,114360.0,3.51531122]
[1754364811755,0.4941608,114370.0,114360.0,3.40517856]
[1754364812053,0.4941608,114370.0,114360.0,4.08696683]
[1754364814652,0.4358408,114370.0,114360.0,3.41624683]
[1754364814851,0.4955008,114370.0,114360.0,4.01632683]
[1754364819767,0.4955008,114370.0,114360.0,4.12651613]
[1754364821363,0.4955008,114370.0,114360.0,4.01632683]
[1754364823974,0.4955008,114370.0,114360.0,4.12651135]
[1754364825869,0.4955008,114370.0,114360.0,2.80696683]
[1754364826776,0.4955008,114370.0,114360.0,2.20688683]
[1754364826977,0.4955008,114370.0,114360.0,2.80680683]
[1754364827478,0.4955008,114370.0,114360.0,2.12501856]
[1754364827777,0.4955008,114370.0,114360.0,2.23516501]
[1754364827778,1.17728907,114370.0,114360.0,2.23516501]
[1754364827967,1.17728907,114370.0,114360.0,2.12497856]
[1754364828165,1.17728907,114370.0,114360.0,1.95009256]
[1754364828369,1.17728907,114370.0,114360.0,2.06027901]
[1754364829473,1.17728907,114370.0,114360.0,2.23516521]
[1754364829673,1.17728907,114370.0,114360.0,2.12497876]
[1754364831074,1.17728907,114370.0,114360.0,1.52509876]
[1754364831284,1.17728907,114370.0,114360.0,2.12493876]
[1754364831878,0.4955008,114370.0,114360.0,2.12493876]
[1754364832079,1.17728907,114370.0,114360.0,2.12493876]
[1754364834783,1.17728907,114370.0,114360.0,2.12489876]
[1754364835888,0.4955008,114370.0,114360.0,2.12489876]
[1754364836978,0.4955008,114370.0,114360.0,1.52509876]
[1754364837180,0.4955008,114370.0,114360.0,2.12489876]
[1754364837378,0.4955008,114370.0,114360.0,2.12485876]
[1754364838379,0.4955008,114370.0,114360.0,2.23502863]
[1754364839583,0.4131508,114370.0,114360.0,2.23502863]
[1754364839782,0.4462408,114370.0,114360.0,2.23502863]
[1754364839983,0.4688208,114370.0,114360.0,2.23502863]
[1754364840185,0.4797708,114370.0,114360.0,2.9168169]
[1754364840486,0.4953908,114370.0,114360.0,2.80664703]
[1754364840784,0.4953908,114370.0,114360.0,2.9168204]
[1754364840984,0.4953908,114370.0,114360.0,2.23503213]
[1754364841186,0.4953908,114370.0,114360.0,1.63527213]
[1754364841485,0.4953908,114370.0,114360.0,2.23499213]
[1754364841882,0.4797708,114370.0,114360.0,2.23499213]
[1754364842083,0.4688208,114370.0,114360.0,1.55320386]
[1754364842385,0.4688208,114370.0,114360.0,2.23499213]
[1754364842585,0.4787308,114370.0,114360.0,2.23499213]
[1754364842787,0.4936708,114370.0,114360.0,2.23499213]
[1754364845988,0.4951208,114370.0,114360.0,2.23499213]
[1754364846886,0.4951208,114370.0,114360.0,2.9167804]
[1754364847289,0.4951208,114370.0,114360.0,1.55320386]
[1754364847489,0.4951208,114370.0,114360.0,2.9167804]
[1754364847986,0.4951208,114370.0,114360.0,2.9167004]
[1754364849190,0.4951208,114370.0,114360.0,2.80652703]
[1754364851690,0.4951208,114370.0,114360.0,2.9167004]
[1754364853194,0.4951208,114370.0,114360.0,1.55312386]
[1754364853395,0.4951208,114370.0,114360.0,2.23491213]
[1754364855097,0.4951208,114370.0,114360.0,1.63527213]
[1754364855397,0.4951208,114370.0,114360.0,2.23479213]
[1754364856497,1.17690907,114370.0,114360.0,2.23479213]
[1754364857592,0.4951208,114370.0,114360.0,2.23479213]
[1754364857791,1.17690907,114370.0,114360.0,2.23479213]
[1754364858094,0.4801808,114370.0,114360.0,2.23475213]
[1754364858297,0.4702708,114370.0,114360.0,2.23475213]
[1754364858497,0.4702708,114370.0,114360.0,2.12457876]
[1754364858798,0.4702708,114370.0,114360.0,2.80636703]
[1754364860800,0.4702708,114370.0,114360.0,2.96352424]
[1754364860999,0.4702708,114370.0,114360.0,2.28173597]
[1754364861600,0.4702708,114370.0,114360.0,2.12457876]
[1754364862102,0.4688208,114370.0,114360.0,1.44279049]
[1754364862301,0.4688208,114370.0,114360.0,2.12457876]
[1754364862500,0.4688208,114370.0,114360.0,2.28173597]
[1754364863701,0.4688208,114370.0,114360.0,1.68225597]
[1754364863900,0.4787308,114370.0,114360.0,2.28165597]
[1754364864098,0.4936708,114370.0,114360.0,2.28165597]
[1754364864300,0.4936708,114370.0,114360.0,2.39189172]
[1754364864899,0.4936708,114370.0,114360.0,2.23473451]
[1754364865100,0.4951208,114370.0,114360.0,2.23473451]
[1754364865304,0.4951208,114370.0,114360.0,1.55294624]
[1754364865502,0.4951208,114370.0,114360.0,2.23473451]
[1754364866997,0.4801808,114370.0,114360.0,2.23473451]
[1754364867398,0.4702708,114370.0,114360.0,2.91652278]
[1754364868709,0.4702708,114370.0,114360.0,2.80628703]
[1754364869102,0.4702708,114370.0,114360.0,2.80620703]
[1754364869910,0.4702708,114370.0,114360.0,2.12441876]
[1754364870409,0.4951208,114370.0,114360.0,2.12441876]
[1754364871109,0.4801808,114370.0,114360.0,2.12441876]
[1754364871310,0.4702708,114370.0,114360.0,2.12441876]
[1754364872512,0.4702708,114370.0,114360.0,1.44263049]
[1754364872703,0.4702708,114370.0,114360.0,2.12441876]
[1754364874512,0.4702708,114370.0,114360.0,2.23465451]
[1754364875511,0.4702708,114370.0,114360.0,2.23457451]
[1754364876513,0.4702708,114370.0,114360.0,2.12433876]
[1754364877515,0.4702708,114370.0,114360.0,2.23457032]
[1754364877812,0.4702708,114370.0,114360.0,2.12433876]
[1754364879316,0.22416,114370.0,114360.0,2.80612703]
[1754364879614,0.20003,114370.0,114360.0,2.80612703]
[1754364885717,0.22493,114370.0,114360.0,2.80612703]
[1754364892040,0.22493,114370.0,114360.0,1.44255049]
[1754364892333,0.22493,114370.0,114360.0,2.80612703]
[1754364893238,1.11323897,114370.0,114360.0,1.55248519]
[1754364893537,1.12838897,114370.0,114360.0,2.23427346]
[1754364894439,1.12838897,114370.0,114360.0,2.23423346]
[1754364897145,1.12838897,114370.0,114360.0,1.63527346]
[1754364897337,1.12838897,114370.0,114360.0,2.23419346]
[1754364897532,1.12838897,114370.0,114360.0,1.55240519]
[1754364897740,1.12838897,114370.0,114360.0,2.23419346]
[1754364900241,1.12838897,114370.0,114360.0,1.55240519]
[1754364900442,1.12838897,114370.0,114360.0,2.23419346]
[1754364901139,1.12838897,114370.0,114360.0,1.55240519]
[1754364901339,1.12838897,114370.0,114360.0,2.23415326]
[1754364901539,1.12838897,114370.0,114360.0,2.23411326]
[1754364902139,1.12838897,114370.0,114360.0,2.05922726]
[1754364902341,1.12838897,114370.0,114360.0,2.23411326]
[1754364902545,1.12838897,114370.0,114360.0,2.12393856]
[1754364902746,0.4956807,114370.0,114360.0,2.12393856]
[1754364902934,1.17746897,114370.0,114360.0,2.12393856]
[1754364903140,0.4956807,114370.0,114360.0,2.12393856]
[1754364904249,0.4956807,114370.0,114360.0,2.23409707]
[1754364906347,0.3998007,114370.0,114360.0,2.91588534]
[1754364907046,0.20003,114370.0,114360.0,2.91588534]
[1754364907448,0.20003,114370.0,114360.0,2.80572683]
[1754364908044,0.22288,114370.0,114360.0,2.80572683]
[1754364908241,0.20003,114370.0,114360.0,2.80572683]
[1754364908443,0.20003,114370.0,114360.0,2.96288404]
[1754364909049,0.20003,114370.0,114360.0,3.07301304]
[1754364909349,0.20003,114370.0,114360.0,2.91585583]
[1754364910145,0.22288,114370.0,114360.0,2.91585583]
[1754364911847,0.22288,114370.0,114360.0,1.55227929]
[1754364912046,0.22288,114370.0,114360.0,2.91585583]
[1754364912649,0.22288,114370.0,114360.0,2.15803028]
[1754364914247,0.22288,114370.0,114360.0,2.04790128]
[1754364916653,0.3977507,114370.0,114360.0,2.04790128]
[1754364916850,0.22288,114370.0,114360.0,2.15803457]
[1754364917049,0.3977507,114370.0,114360.0,2.15803457]
[1754364917250,0.3977507,114370.0,114360.0,2.04790128]
[1754364918945,0.22288,114370.0,114360.0,2.04790128]
[1754364920653,0.3977507,114370.0,114360.0,1.44906128]
[1754364920852,0.4930707,114370.0,114360.0,2.03173128]
[1754364921053,0.4930707,114370.0,114360.0,2.04610128]
[1754364921845,0.4930707,114370.0,114360.0,1.44746128]
[1754364922151,0.4930707,114370.0,114360.0,2.04610128]
[1754364923256,0.4930707,114370.0,114360.0,1.44035029]
[1754364923951,0.4930707,114370.0,114360.0,1.26546429]
[1754364924150,0.4930707,114370.0,114360.0,0.66682429]
[1754364924347,0.4930707,114370.0,114360.0,1.26542429]
[1754364924952,0.4930707,114370.0,114360.0,1.44031029]
[1754364925858,0.4930707,114370.0,114360.0,1.55045542]
[1754364926853,0.4930707,114370.0,114360.0,2.15620641]
[1754364928056,0.4930707,114370.0,114360.0,1.55045542]
[1754364928955,0.4930707,114370.0,114360.0,1.37552942]
[1754364929255,0.4930707,114370.0,114360.0,1.37552239]
[1754364929454,0.4930707,114370.0,114360.0,0.77696239]
[1754364929757,0.4930707,114370.0,114360.0,1.37552239]
[1754364929956,0.4930707,114370.0,114360.0,0.77696239]
[1754364930159,0.4930707,114370.0,114360.0,1.37552239]
[1754364931557,0.4930707,114370.0,114360.0,1.55040839]
[1754364931757,0.4930707,114370.0,114360.0,1.11072239]
[1754364932455,0.4930707,114370.0,114360.0,0.51149239]
[1754364932658,1.17484508,114370.0,114360.0,1.79178677]
[1754364934461,1.17484508,114370.0,114360.0,1.68164867]
[1754364935861,1.17484508,114370.0,114360.0,0.99987429]
[1754364936063,1.17484508,114370.0,114360.0,1.68164867]
[1754364937462,1.17484508,114370.0,114360.0,1.85653467]
[1754364938561,0.4930707,114370.0,114360.0,1.85653467]
[1754364938759,0.4930707,114370.0,114360.0,1.17476029]
[1754364938961,0.4930707,114370.0,114360.0,1.85653467]
[1754364939260,1.17484508,114370.0,114360.0,1.85653467]
[1754364942165,0.4930707,114370.0,114360.0,1.85653467]
[1754364942365,1.17484508,114370.0,114360.0,1.85653467]
[1754364942865,1.17484508,114370.0,114360.0,1.85645467]
[1754364944067,1.17484508,114370.0,114360.0,1.68156867]
[1754364945268,1.17484508,114370.0,114360.0,1.85645457]
[1754364946469,1.17484508,114370.0,114360.0,1.68156867]
[1754364946666,1.17484508,114370.0,114360.0,0.99979429]
[1754364946869,1.17484508,114370.0,114360.0,0.98460429]
[1754364947270,1.17484508,114370.0,114360.0,0.38616429]
[1754364947469,1.17484508,114370.0,114360.0,1.09470239]
[1754364947775,1.17484508,114370.0,114360.0,1.08525239]
[1754364948269,1.67484508,114370.0,114360.0,0.97511429]
[1754364949171,0.9930707,114370.0,114360.0,0.97511429]
[1754364949368,1.67484508,114370.0,114360.0,0.97511429]
[1754364950272,1.67484508,114370.0,114360.0,0.98456429]
[1754364950973,1.67484508,114370.0,114360.0,0.38616429]
[1754364951175,1.67484508,114370.0,114360.0,0.98456429]
[1754364952771,1.67484508,114370.0,114360.0,0.99975429]
[1754364956780,1.67484508,114370.0,114360.0,1.68152867]
[1754364958079,1.67484508,114370.0,114360.0,0.99975429]
[1754364958583,0.9930707,114370.0,114360.0,0.99975429]
[1754364958783,1.67484508,114370.0,114360.0,1.17464029]
[1754364958986,1.67484508,114370.0,114360.0,0.99975429]
[1754364965784,1.67484508,114370.0,114360.0,0.99963429]
[1754364967185,1.67484508,114370.0,114360.0,0.99967429]
[1754364968087,1.67484508,114370.0,114360.0,0.40135429]
[1754364968289,1.67484508,114370.0,114360.0,0.99963429]
[1754364968583,1.67484508,114370.0,114360.0,0.37671429]
[1754364968790,1.67484508,114370.0,114360.0,0.97499429]
[1754364969184,1.67484508,114370.0,114360.0,0.37671429]
[1754364969488,1.67484508,114370.0,114360.0,0.97499429]
[1754364969690,1.67484508,114370.0,114360.0,0.98508429]
[1754364970389,1.67484508,114370.0,114360.0,0.99893429]
[1754364972500,1.67484508,114370.0,114360.0,0.99889429]
[1754364973197,1.67484508,114370.0,114360.0,0.40065429]